bitfinex/quotes_ETHUSD_20241203
["timestamp","ask_amount","ask_price","bid_price","bid_amount"]
[1733253260038,0.06336448,3562.5,3561.8,2.80752]
[1733253260242,3.60113188,3563.1,3560.7,3.805]
[1733253260243,8.88,3562.9,3561.7,2.80762]
[1733253260456,3.60113188,3563.1,3561.7,2.80762]
[1733253260457,0.06336299,3562.4,3561.7,2.80762]
[1733253260655,8.88,3563.0,3561.7,2.80762]
[1733253260869,0.06356494,3562.3,3560.9,7.15113188]
[1733253261070,3.0,3562.9,3561.0,2.80819]
[1733253261268,3.0,3562.9,3562.0,2.80739]
[1733253261470,0.06356937,3562.8,3562.0,2.80739]
[1733253261677,0.06356937,3562.8,3561.4,2.8078]
[1733253261855,1.44334326,3563.3,3562.1,2.80731]
[1733253262049,0.06356864,3562.7,3560.9,3.55]
[1733253262258,1.44334326,3563.3,3561.4,2.8078]
[1733253262518,0.06161791,3562.6,3561.5,0.63578]
[1733253262722,10.32334326,3563.3,3561.5,3.63578]
[1733253263078,0.0616223,3563.2,3562.4,2.80703]
[1733253263596,0.0616223,3563.2,3562.5,2.80698]
[1733253263809,0.0616223,3563.2,3561.7,3.0]
[1733253263972,1.44334326,3563.3,3562.3,2.80717]
[1733253264174,0.06184661,3563.2,3561.9,0.8116]
[1733253264420,1.44334326,3563.3,3562.6,2.80691]
[1733253264580,0.06184661,3563.2,3562.7,2.80683]
[1733253264777,1.44334326,3563.3,3562.7,2.80683]
[1733253264981,0.20624254,3563.2,3562.7,2.80683]
[1733253265382,0.20624254,3563.2,3562.0,2.80741]
[1733253265607,0.06190821,3563.2,3562.9,2.80668]
[1733253265778,1.44334326,3563.3,3562.9,2.80668]
[1733253265979,0.06190821,3563.2,3562.9,2.80668]
[1733253266179,1.44334326,3563.3,3562.9,2.80668]
[1733253266407,0.06204015,3563.2,3562.9,2.80668]
[1733253266606,3.0,3563.8,3562.9,2.80668]
[1733253266809,0.06203935,3563.1,3562.0,2.80741]
[1733253267113,3.0,3563.9,3562.8,2.80677]
[1733253267321,4.01726813,3563.5,3561.7,2.80764]
[1733253267478,3.0,3562.9,3560.6,3.61003]
[1733253267681,3.0,3562.9,3560.6,0.8016]
[1733253267910,4.01726813,3562.5,3560.8,2.80835]
[1733253268091,4.01726813,3562.5,3560.7,0.361017]
[1733253268298,0.06215304,3562.4,3560.7,0.361017]
[1733253269415,3.0,3562.9,3560.7,0.361017]
[1733253269626,0.61161542,3562.8,3560.7,0.361017]
[1733253269833,0.06161542,3562.8,3561.7,2.80764]
[1733253269982,0.06161542,3562.8,3561.5,2.80775]
[1733253270290,0.06161542,3562.8,3561.7,2.80764]
[1733253270619,3.0,3562.7,3561.8,2.80756]
[1733253270809,0.06118781,3562.6,3561.1,2.80806]
[1733253270994,0.06118781,3562.6,3561.7,2.80763]
[1733253272335,0.06118781,3562.6,3561.2,2.80804]
[1733253272817,0.06118781,3562.6,3561.0,2.80819]
[1733253273119,0.06118781,3562.6,3561.5,2.80778]
[1733253273323,0.26687393,3562.6,3561.6,2.80771]
[1733253273523,0.26687393,3562.6,3560.9,0.55]
[1733253273524,0.26687393,3562.6,3561.2,2.80804]
[1733253273713,0.06118781,3562.6,3561.7,2.80759]
[1733253274194,0.20568612,3562.5,3561.0,2.80819]
[1733253274378,0.0612477,3562.4,3561.8,2.80754]
[1733253274587,0.20615334,3562.7,3561.9,2.80747]
[1733253274816,0.26740147,3562.6,3561.9,2.80747]
[1733253275019,0.20615365,3562.5,3561.9,2.80747]
[1733253275225,0.26740005,3562.4,3562.0,2.80739]
[1733253275519,0.20615365,3562.3,3561.3,5.61592]
[1733253275734,0.06131607,3562.3,3562.0,2.80739]
[1733253275880,0.33055736,3562.7,3561.7,2.80763]
[1733253276083,0.53716234,3562.6,3561.0,6.57894]
[1733253276432,4.27551584,3563.0,3561.1,0.77458897]
[1733253276433,0.79541005,3562.5,3561.1,0.77458897]
[1733253276580,0.79541005,3562.4,3561.1,0.77458897]
[1733253276786,0.53716234,3562.3,3561.7,2.80764]
[1733253276981,0.53716234,3562.3,3561.2,2.80804]
[1733253276982,0.53716234,3562.2,3561.2,2.80804]
[1733253277186,0.53858431,3562.1,3561.8,2.80749]
[1733253277411,0.53858431,3562.0,3561.8,2.80749]
[1733253277621,0.20660498,3561.9,3561.8,2.80749]
[1733253278535,0.53902388,3561.9,3561.8,2.80749]
[1733253279236,0.80110155,3561.9,3561.8,2.80756]
[1733253279397,0.60072763,3561.9,3561.8,2.80756]
[1733253279597,0.54100359,3561.9,3561.8,2.80756]
[1733253279905,0.2080783,3561.9,3561.8,2.80756]
[1733253280412,0.54185821,3561.9,3561.8,6.36909]
[1733253281420,0.2080783,3561.9,3561.8,6.36909]
[1733253281626,0.2080783,3561.9,3561.8,6.91909]
[1733253281828,0.54185839,3561.9,3561.8,5.80756]
[1733253282447,0.80263312,3561.9,3561.8,5.80756]
[1733253283117,0.80263312,3561.9,3561.8,2.80756]
[1733253284624,0.80263312,3561.9,3561.8,5.80756]
[1733253285146,0.80266965,3561.9,3561.8,5.80756]
[1733253285318,0.54185839,3561.9,3561.8,5.80756]
[1733253285515,2.80646,3563.2,3561.5,2.80774]
[1733253285715,0.54148462,3563.1,3562.0,2.80739]
[1733253285951,0.26083862,3563.0,3562.0,2.80739]
[1733253286260,0.340867,3563.1,3562.0,2.80739]
[1733253286261,0.06021893,3562.9,3562.0,2.80739]
[1733253286451,0.26092388,3562.8,3562.0,2.80739]
[1733253286608,0.26092388,3562.7,3562.0,2.80739]
[1733253286812,0.280646,3563.1,3561.3,3.0]
[1733253286813,0.26092388,3562.6,3561.3,3.0]
[1733253287041,0.26092388,3562.5,3562.1,2.80728]
[1733253287240,0.280646,3563.1,3561.4,0.3774589]
[1733253287241,0.32109571,3562.4,3562.0,2.8074]
[1733253287426,0.32109571,3562.4,3561.5,2.8078]
[1733253287427,0.26092388,3562.3,3561.6,3.0]
[1733253287635,0.26092388,3562.2,3561.6,3.0]
[1733253287841,0.26092388,3562.1,3562.0,2.80741]
[1733253291551,0.26092388,3562.1,3562.0,3.450751]
[1733253293168,11.97718694,3563.8,3562.7,2.80684]
[1733253293662,0.32155641,3563.7,3562.7,2.80684]
[1733253293861,0.2612387,3563.6,3562.7,2.80684]
[1733253294062,0.2612387,3563.6,3562.2,2.80721]
[1733253294063,0.2612387,3563.5,3562.2,2.80721]
[1733253294222,0.2612387,3563.4,3561.9,0.8184]
[1733253294429,0.32155426,3563.3,3562.8,2.80677]
[1733253294665,0.2612387,3563.2,3562.9,2.80667]
[1733253294828,0.2612387,3563.1,3562.9,2.80667]
[1733253295025,0.2612387,3563.0,3562.9,2.80667]
[1733253296437,0.2612387,3563.0,3562.8,2.80676]
[1733253296663,0.2612387,3562.9,3562.8,2.80676]
[1733253296864,0.26117377,3562.9,3562.8,2.80676]
[1733253297064,0.26117391,3562.9,3562.8,2.80676]
[1733253297431,0.26117391,3562.9,3562.7,2.8068]
[1733253297739,2.80599,3563.8,3562.8,2.80678]
[1733253297942,0.54175615,3563.7,3562.8,2.80678]
[1733253298170,0.26115715,3563.6,3562.8,2.80678]
[1733253298335,0.26115715,3563.5,3562.7,2.80683]
[1733253298674,0.26115715,3563.4,3562.7,2.80679]
[1733253298975,0.26115715,3563.4,3562.0,2.80741]
[1733253298976,0.26115715,3563.3,3562.8,2.80676]
[1733253299137,0.26115715,3563.2,3562.3,2.80712]
[1733253299479,0.26115715,3563.1,3562.7,2.80685]
[1733253299673,0.26115715,3563.0,3562.7,2.80685]
[1733253299849,0.26115715,3562.9,3562.8,2.80675]
[1733253300492,2.80599,3563.8,3562.8,2.80675]
[1733253300493,2.80604,3563.8,3562.8,2.80675]
[1733253300815,2.80634,3563.4,3562.3,2.80715]
[1733253300979,0.26119407,3563.7,3561.9,3.62583]
[1733253300980,0.54182807,3563.3,3561.9,0.8184]
[1733253301178,0.54182807,3563.3,3561.8,2.80754]
[1733253301179,2.80676,3562.9,3561.8,2.80754]
[1733253301388,0.26119407,3562.8,3561.8,2.80754]
[1733253301595,0.26119407,3562.8,3561.5,0.7866]
[1733253301596,3.06805407,3562.7,3561.7,2.80764]
[1733253301917,3.12653292,3562.6,3561.6,2.80765]
[1733253302082,0.53584055,3562.5,3561.7,2.80764]
[1733253302286,0.26119407,3562.4,3561.5,0.7866]
[1733253302606,0.26119407,3562.4,3561.1,0.77458897]
[1733253302607,0.26119407,3562.3,3561.1,0.77458897]
[1733253302817,0.26119407,3562.2,3561.0,0.8314]
[1733253303020,0.31917411,3562.2,3561.2,2.80798]
[1733253303315,0.26125418,3562.1,3561.3,2.80796]
[1733253303612,0.26125418,3562.0,3561.1,2.80812]
[1733253303809,0.26125418,3562.0,3561.0,0.8314]
[1733253303810,0.05790914,3562.0,3561.6,2.8077]
[1733253303978,0.05790914,3562.0,3561.6,0.28077]
[1733253304179,2.80664,3563.0,3561.8,2.80755]
[1733253304409,0.26131435,3562.9,3561.8,2.80755]
[1733253304613,2.80664,3563.0,3561.0,0.8314]
[1733253304614,0.26131435,3562.8,3561.9,2.80742]
[1733253304828,0.26131435,3562.7,3562.3,2.80716]
[1733253305130,0.26131435,3562.6,3562.4,2.80705]
[1733253305415,0.26131435,3562.6,3561.9,0.8278]
[1733253305416,1.16701865,3563.4,3562.5,2.80701]
[1733253305576,0.26140043,3563.3,3562.5,2.80701]
[1733253305771,0.26140043,3563.2,3562.5,2.80701]
[1733253305984,0.26140043,3563.1,3562.6,2.80693]
[1733253306198,0.26140043,3563.0,3562.1,2.80733]
[1733253306400,0.05537255,3563.1,3562.7,2.80678]
[1733253306604,0.05537255,3563.1,3561.9,3.63521]
[1733253306787,0.2614158,3563.6,3562.6,2.8069]
[1733253306987,0.2614158,3563.5,3562.6,2.8069]
[1733253307187,0.2614158,3563.4,3562.6,2.8069]
[1733253307418,0.2614158,3563.3,3562.0,1.02336012]
[1733253307587,0.2614158,3563.2,3561.9,0.8278]
[1733253307797,0.2614158,3563.1,3561.9,2.80746]
[1733253308100,0.2614158,3563.1,3561.7,2.80763]
[1733253308101,2.8068,3562.8,3561.7,2.80763]
[1733253308274,0.2614158,3562.7,3561.5,0.781]
[1733253308475,0.2614158,3562.6,3562.0,2.8074]
[1733253308678,2.80647,3563.2,3562.0,2.8074]
[1733253309018,0.26139057,3563.1,3562.3,2.80716]
[1733253309314,0.31538993,3563.0,3561.5,0.781]
[1733253309519,3.06816057,3562.9,3561.8,2.80749]
[1733253309683,3.06816057,3562.9,3561.5,0.781]
[1733253309684,0.26139057,3562.8,3561.6,0.55]
[1733253309886,0.26139057,3562.7,3561.6,2.80771]
[1733253310103,0.26139057,3562.7,3561.1,0.7972]
[1733253310104,0.26139057,3562.6,3561.1,0.7972]
[1733253310275,0.26139057,3562.5,3560.6,0.7972]
[1733253310478,2.8077,3561.7,3560.6,2.80851]
[1733253310683,3.06912057,3561.6,3560.6,2.80851]
[1733253310902,0.26140027,3561.5,3560.2,0.7972]
[1733253311106,0.26140027,3561.4,3560.4,2.80866]
[1733253311352,0.26140027,3561.4,3560.2,0.7972]
[1733253311353,2.8079,3561.4,3560.2,0.7972]
[1733253311624,6.40592121,3561.9,3560.2,0.7972]
[1733253311625,2.86162127,3561.3,3560.2,2.80879]
[1733253311974,0.05364127,3561.3,3560.3,2.80874]
[1733253312177,0.05364127,3561.3,3559.9,2.80902]
[1733253312524,0.31476707,3561.3,3559.8,0.7742]
[1733253312727,0.2611258,3561.2,3559.8,0.7742]
[1733253312889,0.31446314,3561.2,3559.8,0.7742]
[1733253313083,0.05333734,3561.2,3560.1,2.80889]
[1733253313289,3.12224083,3561.2,3559.9,2.80904]
[1733253313524,0.05333734,3561.2,3559.8,0.7742]
[1733253313682,2.80797,3561.3,3560.0,2.80894]
[1733253314020,0.05283689,3561.1,3560.0,2.80894]
[1733253314226,0.05283716,3561.2,3560.0,2.80894]
[1733253314427,0.05283595,3561.0,3560.0,2.80894]
[1733253314625,0.05283715,3561.1,3560.1,2.80889]
[1733253314802,0.05283551,3560.9,3560.1,2.80889]
[1733253314986,0.0528365,3561.0,3560.1,2.80889]
[1733253315198,0.05283504,3560.8,3560.1,2.80889]
[1733253315436,0.05283577,3560.9,3560.1,2.80889]
[1733253315614,0.05283457,3560.7,3560.1,2.80889]
[1733253315812,0.0528353,3560.8,3559.3,3.60339121]
[1733253316014,3.59839121,3560.9,3559.5,2.8093]
[1733253316218,0.0528337,3560.7,3559.3,0.005]
[1733253316539,2.80868,3560.4,3559.3,0.005]
[1733253316833,2.86106689,3560.6,3559.3,2.81452]
[1733253317013,0.05204535,3560.3,3559.3,0.005]
[1733253317343,0.05204002,3560.2,3559.3,0.005]
[1733253317940,0.05163053,3560.1,3559.3,0.005]
[1733253318123,0.05163053,3560.1,3559.4,2.80944]
[1733253318298,11.88,3560.8,3559.3,0.005]
[1733253318501,11.88,3560.8,3559.4,2.80943]
[1733253318880,0.05163292,3560.7,3559.3,0.005]
[1733253319011,0.05163292,3560.7,3559.3,2.81451]
[1733253319350,2.86006292,3560.7,3559.3,0.005]
[1733253319503,0.05163292,3560.7,3559.3,0.005]
[1733253319702,0.05163292,3560.7,3559.3,2.81447]
[1733253320619,0.05163292,3560.7,3559.4,2.80943]
[1733253321208,8.93163292,3560.7,3559.3,0.005]
[1733253321605,3.59839121,3560.1,3559.3,0.005]
[1733253322145,3.0,3560.4,3559.3,0.005]
[1733253322146,0.04985465,3560.0,3559.3,0.005]
[1733253322441,3.0,3560.3,3559.3,0.005]
[1733253322857,0.04985669,3560.2,3559.3,0.005]
[1733253327523,0.04985669,3560.2,3559.4,2.80946]
[1733253327724,0.04985669,3560.2,3559.3,0.005]
[1733253327961,0.67282741,3561.0,3560.0,2.80892]
[1733253328136,0.66578432,3561.4,3559.8,2.80914]
[1733253328332,0.67287238,3561.4,3559.9,0.38584337]
[1733253328521,0.25877977,3561.4,3559.9,0.357754]
[1733253328724,0.25877977,3561.4,3561.0,2.80818]
[1733253328961,0.25891396,3561.9,3561.1,2.80811]
[1733253329161,0.6731865,3561.9,3560.9,2.80827]
[1733253329375,0.25891396,3562.3,3561.1,2.80812]
[1733253329537,0.25891396,3562.2,3561.1,2.80812]
[1733253329728,0.25891396,3562.1,3561.1,2.80812]
[1733253329931,0.41427254,3562.2,3561.1,2.80812]
[1733253329932,0.25891396,3562.0,3561.1,2.80812]
[1733253330270,9.13891396,3562.1,3560.1,0.7777]
[1733253330564,0.25891396,3562.0,3561.2,2.80798]
[1733253330866,0.67348723,3562.3,3561.5,2.80773]
[1733253331072,0.67348723,3562.6,3561.9,2.80748]
[1733253331388,0.05059512,3562.5,3561.5,2.8078]
[1733253331529,0.05059512,3562.5,3561.6,2.8077]
[1733253331728,0.05059512,3562.5,3561.0,0.7868]
[1733253332265,3.94916901,3562.5,3560.8,2.8083]
[1733253332427,2.80728,3562.2,3560.8,2.8083]
[1733253332626,2.80728,3562.2,3560.6,0.7868]
[1733253332627,8.88,3562.2,3560.6,2.80843]
[1733253332853,8.88,3562.2,3560.3,2.80869]
[1733253332854,2.80742,3562.0,3560.7,2.80843]
[1733253333070,0.25927432,3561.9,3560.7,2.80843]
[1733253333368,0.09186108,3561.8,3560.4,2.80859]
[1733253333685,2.89950108,3561.8,3560.2,0.7868]
[1733253333862,0.09186108,3561.8,3560.5,2.80857]
[1733253334234,2.80787,3561.5,3559.7,3.58004]
[1733253334487,2.80809,3561.2,3559.7,0.7709]
[1733253334629,3.25928687,3561.1,3559.7,2.80915]
[1733253334966,9.23097572,3561.0,3559.7,2.80915]
[1733253335128,0.25928949,3560.9,3559.7,2.80915]
[1733253335563,0.09129561,3560.8,3559.8,2.80911]
[1733253336039,0.09129561,3560.8,3559.9,2.80905]
[1733253336379,0.09129561,3560.8,3559.9,2.80901]
[1733253336543,0.09129561,3560.8,3559.6,6.40769121]
[1733253336733,0.09129561,3560.8,3560.7,2.80843]
[1733253337054,0.25928949,3561.3,3560.3,0.8089]
[1733253337269,0.25928949,3561.2,3560.9,2.8082]
[1733253337446,0.09130005,3561.2,3560.9,2.8082]
[1733253337874,0.25928949,3561.7,3560.9,2.80826]
[1733253338089,0.25928949,3561.7,3560.6,2.80851]
[1733253338090,0.25928949,3561.6,3560.6,2.80851]
[1733253338291,0.41524556,3561.7,3560.3,0.8089]
[1733253338292,0.35077514,3561.5,3560.3,0.8089]
[1733253338598,0.25928949,3561.4,3560.7,2.8084]
[1733253338757,0.25928949,3561.3,3560.7,2.8084]
[1733253339098,2.80851,3560.6,3559.2,2.81457]
[1733253339302,0.54071283,3560.5,3559.2,0.005]
[1733253339597,0.67510739,3560.4,3559.2,0.005]
[1733253339801,3.0,3560.0,3559.2,0.005]
[1733253340006,2.80926,3559.7,3559.2,0.005]
[1733253340205,0.26007474,3559.6,3559.2,0.005]
[1733253340366,0.53450422,3559.5,3559.2,0.005]
[1733253340563,0.2600549,3559.4,3559.2,0.005]
[1733253341072,0.35084358,3559.4,3559.2,0.005]
[1733253341267,0.76690528,3559.4,3559.2,0.005]
[1733253341671,0.35084358,3559.4,3559.2,0.005]
[1733253342773,0.76671642,3559.4,3559.2,0.005]
[1733253342973,0.35084358,3559.4,3559.2,0.005]
[1733253343189,0.76671642,3559.4,3559.2,0.005]
[1733253344092,3.57617642,3559.4,3559.2,0.005]
[1733253344297,0.35084358,3559.4,3559.2,0.005]
[1733253344810,0.76671642,3559.4,3559.2,0.005]
[1733253345106,0.35084358,3559.4,3559.2,0.005]
[1733253345601,0.35052318,3559.4,3559.2,0.005]
[1733253345909,0.76607225,3559.4,3559.2,0.005]
[1733253346610,0.35052318,3559.4,3559.2,0.005]
[1733253347206,0.76605074,3559.4,3559.2,0.005]
[1733253347767,0.35052318,3559.4,3559.2,0.005]
[1733253348090,0.76603475,3559.4,3559.2,0.005]
[1733253349003,0.09080502,3559.4,3558.4,2.80687588]
[1733253349207,0.35049112,3559.4,3558.4,2.80687588]
[1733253349504,0.2596861,3559.3,3558.4,2.80687588]
[1733253349702,0.2596861,3559.2,3558.4,2.80687588]
[1733253349901,0.08938459,3559.3,3558.4,2.80687588]
[1733253350204,0.41549776,3559.5,3558.4,2.80687588]
[1733253350205,0.34904656,3559.2,3558.4,2.80687588]
[1733253350418,0.08938459,3559.2,3558.4,2.80687588]
[1733253350574,0.08938459,3559.2,3558.1,0.02810201]
[1733253350901,0.41549776,3559.5,3558.7,2.80998]
[1733253351106,0.08938459,3559.1,3558.7,2.80998]
[1733253351312,0.08938459,3559.1,3558.2,0.2838652]
[1733253351506,0.08938903,3559.0,3558.5,2.81013]
[1733253351709,0.08938903,3559.0,3558.5,3.56633]
[1733253351867,0.08938903,3558.9,3557.5,2.81094]
[1733253352072,3.59839121,3559.0,3557.6,0.37220178]
[1733253352319,2.80988,3558.9,3557.7,2.81077]
[1733253352475,3.59839121,3558.6,3556.3,2.81183]
[1733253352676,3.6875635,3558.5,3557.1,2.8112]
[1733253352881,2.81034,3558.3,3557.0,2.81133]
[1733253353136,2.8108,3557.7,3556.4,2.81178]
[1733253353412,2.81041,3558.2,3557.1,2.81126]
[1733253353413,0.08899533,3558.2,3557.1,2.81126]
[1733253353611,0.25942286,3558.1,3557.2,2.81118]
[1733253353813,2.89951533,3558.1,3556.9,2.81141]
[1733253354013,2.81057,3558.0,3556.8,2.8115]
[1733253354510,0.08805717,3557.9,3556.8,2.8115]
[1733253354714,0.08805717,3557.9,3556.7,3.64295]
[1733253354892,0.25932313,3558.3,3556.8,2.81147]
[1733253355077,0.67429832,3558.7,3557.7,2.8108]
[1733253355278,0.08805717,3558.2,3557.7,2.8108]
[1733253355516,0.25934724,3558.5,3557.7,2.8108]
[1733253355716,0.25926641,3558.8,3557.6,2.81087]
[1733253355918,6.22484108,3558.9,3557.7,2.81075]
[1733253355919,0.25926641,3558.7,3557.7,2.81075]
[1733253356218,0.25926641,3558.6,3557.7,2.81075]
[1733253356378,0.08785997,3558.7,3557.7,0.37607278]
[1733253356581,15.28817121,3559.0,3557.7,0.37607278]
[1733253356906,15.28817121,3559.0,3557.4,0.1548778]
[1733253356907,0.0880547,3558.6,3557.4,0.9499778]
[1733253357103,0.0880547,3558.5,3557.8,2.81072]
[1733253357621,0.0880547,3558.4,3557.4,0.9499778]
[1733253357776,0.0880547,3558.4,3558.1,2.81045]
[1733253357980,0.25915679,3559.1,3558.2,2.8104]
[1733253358178,0.08443517,3558.3,3558.2,3.09144]
[1733253358390,0.25915679,3559.3,3558.2,3.88654]
[1733253358681,0.25915679,3559.5,3558.5,2.81016]
[1733253358903,0.25915679,3559.4,3558.6,2.81006]
[1733253359110,0.25915679,3559.7,3558.3,0.02810139]
[1733253359304,0.25915679,3559.6,3559.0,2.80976]
[1733253359503,0.25915679,3560.0,3558.8,2.80988]
[1733253359706,0.41463476,3560.1,3558.8,2.80988]
[1733253359707,0.25921544,3559.9,3558.8,2.80988]
[1733253360017,0.25921544,3559.8,3558.8,2.80988]
[1733253360225,0.25921544,3559.7,3558.8,2.80988]
[1733253360523,0.25921544,3559.6,3558.2,1.07614]
[1733253360727,3.06824544,3560.0,3558.7,2.80995]
[1733253360926,0.08454597,3559.6,3558.2,0.7951]
[1733253361130,0.25921544,3559.8,3558.2,0.7951]
[1733253361440,0.08454597,3559.5,3558.8,2.80993]
[1733253361719,0.08454597,3559.4,3558.8,2.80987]
[1733253361940,0.08454597,3559.4,3558.8,0.280987]
[1733253362238,0.08454597,3559.3,3558.3,2.81033]
[1733253362523,0.08454597,3559.3,3558.2,0.7951]
[1733253362755,0.08454597,3559.2,3558.8,2.80991]
[1733253363331,0.25964968,3559.4,3558.8,2.80991]
[1733253363539,0.08482074,3559.1,3558.3,2.81033]
[1733253363693,3.28999993,3560.4,3558.3,2.81033]
[1733253363694,0.25985617,3559.6,3559.0,3.60197]
[1733253363894,0.41510779,3560.0,3559.4,2.80946]
[1733253364139,0.28999993,3560.4,3558.8,2.80987]
[1733253364140,3.59839121,3559.8,3558.8,2.80987]
[1733253364304,3.59839121,3559.8,3558.6,3.60228]
[1733253364305,0.67498355,3559.7,3558.6,3.60228]
[1733253364496,0.75701309,3559.6,3558.2,0.7922]
[1733253364698,0.25987576,3559.5,3558.9,2.80985]
[1733253364938,0.25987576,3559.4,3559.0,2.80976]
[1733253365120,0.08202954,3559.4,3559.0,2.80976]
[1733253365517,0.416072,3559.8,3559.0,2.80976]
[1733253365836,0.26005074,3559.7,3558.4,2.81025]
[1733253366052,0.26002519,3559.6,3558.7,2.81]
[1733253366200,2.80942,3559.5,3558.3,2.81025]
[1733253366405,2.80986,3558.9,3557.7,2.81076]
[1733253366714,3.59839121,3559.0,3557.6,2.81088]
[1733253366914,0.08201181,3558.8,3558.1,2.81048]
[1733253367246,6.40818121,3559.0,3557.9,2.81061]
[1733253367402,0.2601958,3558.9,3558.1,2.81046]
[1733253367740,0.2601958,3558.8,3557.5,0.7828]
[1733253367944,0.41630518,3559.1,3558.2,2.81034]
[1733253368244,8.88,3559.5,3557.5,3.59376]
[1733253368245,0.08178137,3558.7,3558.5,2.81015]
[1733253368543,0.08178137,3558.7,3558.2,2.81034]
[1733253368740,0.08178137,3558.7,3558.3,2.81032]
[1733253369332,2.80971,3559.1,3558.0,2.81055]
[1733253369536,0.26064827,3559.0,3558.0,2.81055]
[1733253369732,0.08178137,3558.6,3558.2,2.81034]
[1733253369909,0.41704364,3559.2,3558.3,2.81032]
[1733253370250,0.75952184,3559.1,3558.0,2.81054]
[1733253370549,3.48757196,3559.0,3558.0,2.81054]
[1733253370705,0.26066136,3558.9,3558.0,2.81054]
[1733253370905,0.26066136,3558.8,3557.5,0.7828]
[1733253371112,0.26066136,3558.7,3557.8,2.81071]
[1733253371404,0.26066136,3558.6,3557.8,2.81071]
[1733253371637,2.81,3558.8,3557.6,2.81088]
[1733253371810,2.81,3558.8,3557.5,0.7828]
[1733253371811,0.07970181,3558.5,3557.7,2.81072]
[1733253372148,0.07970181,3558.4,3557.8,2.81071]
[1733253372639,0.07970181,3558.3,3557.8,2.81071]
[1733253373014,2.81,3558.8,3557.8,2.81071]
[1733253373219,0.07970181,3558.2,3557.8,2.81071]
[1733253373442,0.26070606,3558.6,3557.4,0.1548778]
[1733253373748,0.07970181,3558.1,3557.4,0.1548778]
[1733253374047,0.41710488,3558.4,3557.5,2.81094]
[1733253374221,0.07946691,3558.0,3557.5,2.81094]
[1733253374421,0.41710488,3558.5,3557.5,2.81094]
[1733253374637,0.07946691,3557.9,3557.5,2.81094]
[1733253374816,0.26061341,3558.3,3557.5,2.81094]
[1733253375017,0.07946691,3557.8,3557.5,2.81094]
[1733253375225,0.7071403,3558.5,3557.4,0.1548778]
[1733253375562,0.26058038,3558.4,3557.4,0.1548778]
[1733253375849,0.26058038,3558.3,3557.7,2.81077]
[1733253376051,0.07944917,3558.4,3557.7,2.81077]
[1733253376252,0.29015495,3558.5,3557.7,2.81077]
[1733253376471,0.07922251,3558.3,3557.7,2.81077]
[1733253376761,2.81035,3558.3,3557.4,0.1548778]
[1733253376930,0.33979172,3558.2,3557.4,0.1548778]
[1733253377115,2.81049,3558.1,3557.4,0.1548778]
[1733253377317,0.33943775,3558.0,3557.4,0.1548778]
[1733253377543,0.0789211,3558.0,3557.4,0.1548778]
[1733253377929,0.0789211,3557.9,3557.4,0.1548778]
[1733253378466,2.81096,3557.5,3557.4,0.1548778]
[1733253378665,0.26054972,3557.5,3557.4,0.1548778]
[1733253378955,3.56712418,3557.5,3557.4,0.1548778]
[1733253379181,3.15024462,3557.5,3557.4,0.1548778]
[1733253379392,3.566561,3557.5,3557.4,0.1548778]
[1733253379537,3.15002801,3557.5,3557.4,0.1548778]
[1733253379741,2.8896949,3557.5,3557.4,0.1548778]
[1733253379988,3.30624502,3557.5,3557.4,0.1548778]
[1733253380137,3.15003872,3557.5,3557.4,0.1548778]
[1733253380340,2.8896949,3557.5,3557.4,0.1548778]
[1733253380584,0.0787349,3557.5,3557.4,0.1548778]
[1733253380787,2.81096,3557.5,3557.4,0.1548778]
[1733253381078,3.14918589,3557.5,3557.4,0.1548778]
[1733253381437,0.33822589,3557.5,3557.4,0.1548778]
[1733253384465,3.14918589,3557.5,3557.4,0.1548778]
[1733253386068,0.33822589,3557.5,3557.4,0.1548778]
[1733253386654,0.07802976,3557.5,3557.4,0.1548778]
[1733253387035,0.25982133,3557.6,3557.4,0.1548778]
[1733253387235,8.88,3558.3,3557.4,0.1548778]
[1733253387236,0.07799871,3557.5,3557.4,0.1548778]
[1733253387439,0.25978789,3558.1,3557.7,2.81075]
[1733253387637,0.07799871,3557.5,3557.4,0.9066778]
[1733253387833,0.25980895,3558.2,3557.4,1.27845658]
[1733253388019,0.07799871,3557.5,3557.4,3.7177178]
[1733253388238,0.25983975,3558.2,3557.4,0.1548778]
[1733253388546,8.88,3558.3,3557.4,0.1548778]
[1733253388547,0.07802978,3557.5,3557.4,2.9658978]
[1733253388752,0.25981495,3558.2,3557.7,2.81078]
[1733253388915,8.88,3558.3,3557.7,2.81078]
[1733253389109,0.25982133,3558.2,3557.7,2.81078]
[1733253389324,8.88,3558.3,3557.7,2.81078]
[1733253389725,0.25983953,3558.2,3557.4,0.1548778]
[1733253389951,0.25983953,3558.1,3557.4,0.1548778]
[1733253390256,2.81071,3557.9,3557.4,0.1548778]
[1733253390427,3.07056953,3557.8,3557.4,0.1548778]
[1733253390609,2.81073,3557.8,3557.4,0.1548778]
[1733253390810,0.2598375,3557.7,3557.4,0.1548778]
[1733253391035,0.07833578,3557.7,3557.4,0.1548778]
[1733253391245,3.07058464,3557.9,3557.4,0.1548778]
[1733253391425,2.81096,3557.5,3557.4,0.1548778]
[1733253391625,3.36096,3557.5,3557.4,0.1548778]
[1733253391910,3.69915968,3557.5,3557.4,0.1548778]
[1733253393020,6.69915968,3557.5,3557.4,0.1548778]
[1733253393648,3.69915968,3557.5,3557.4,0.1548778]
[1733253395910,0.88819968,3557.5,3557.4,0.1548778]
[1733253396475,0.33819968,3557.5,3557.4,0.1548778]
[1733253396666,0.07833578,3557.5,3557.4,0.1548778]
[1733253397088,0.81002689,3557.7,3557.4,0.1548778]
[1733253397308,0.07796324,3557.5,3557.4,0.1548778]
[1733253397474,0.55,3558.0,3557.4,0.1548778]
[1733253397696,0.26008577,3557.9,3557.4,0.1548778]
[1733253397909,0.26010816,3558.0,3557.4,0.1548778]
[1733253398217,2.81008,3558.7,3557.4,0.1548778]
[1733253398218,11.68986,3558.9,3557.9,2.81064]
[1733253398422,0.29003184,3558.7,3557.8,0.7772]
[1733253398592,0.29003184,3558.7,3557.8,3.5879]
[1733253398593,0.67649437,3558.6,3557.8,3.5879]
[1733253398918,0.26019014,3558.5,3557.6,2.81083]
[1733253399128,0.26019014,3558.4,3557.6,2.81083]